bitfinex/quotes_BTCUSD_20241003
["timestamp","ask_amount","ask_price","bid_price","bid_amount"]
[1727983756597,0.05683818,60890.0,60889.0,0.164233]
[1727983758252,0.05683818,60890.0,60888.0,0.1701]
[1727983759680,0.0825848,60890.0,60888.0,0.334335]
[1727983760423,0.0825848,60890.0,60888.0,0.1701]
[1727983760670,0.22106918,60890.0,60888.0,0.1701]
[1727983760916,0.05683818,60890.0,60888.0,0.1701]
[1727983761389,0.05683818,60890.0,60888.0,0.334334]
[1727983761895,0.05765718,60890.0,60888.0,0.334334]
[1727983762137,0.05765718,60890.0,60888.0,0.1701]
[1727983762378,0.05765718,60890.0,60888.0,0.334335]
[1727983763343,0.05765718,60890.0,60889.0,0.164233]
[1727983763580,0.08340383,60890.0,60889.0,0.164233]
[1727983764128,0.02656565,60890.0,60889.0,0.264133]
[1727983764608,0.02656565,60890.0,60889.0,0.343933]
[1727983766342,0.000819,60890.0,60889.0,0.343933]
[1727983766828,0.001819,60890.0,60889.0,0.343933]
[1727983767303,0.002819,60890.0,60889.0,0.343933]
[1727983767545,0.003819,60890.0,60889.0,0.343933]
[1727983767764,0.000819,60890.0,60889.0,0.343933]
[1727983767982,0.001819,60890.0,60889.0,0.343933]
[1727983768943,0.002819,60890.0,60889.0,0.343933]
[1727983772557,0.001819,60890.0,60889.0,0.343933]
[1727983773230,0.000819,60890.0,60889.0,0.343933]
[1727983773462,0.001819,60890.0,60889.0,0.343933]
[1727983773683,0.002819,60890.0,60889.0,0.343933]
[1727983773912,0.001819,60890.0,60889.0,0.343933]
[1727983774188,0.002819,60890.0,60889.0,0.343933]
[1727983779571,0.02856353,60890.0,60889.0,0.343933]
[1727983780746,0.002819,60890.0,60889.0,0.343933]
[1727983784087,0.002819,60890.0,60889.0,0.264133]
[1727983784968,0.001819,60890.0,60889.0,0.264133]
[1727983785189,0.02756433,60890.0,60889.0,0.264133]
[1727983785607,0.02856433,60890.0,60889.0,0.264133]
[1727983786293,0.002819,60890.0,60889.0,0.264133]
[1727983789583,0.02856432,60890.0,60889.0,0.264133]
[1727983791154,0.002819,60890.0,60889.0,0.264133]
[1727983794173,0.02856224,60890.0,60889.0,0.264133]
[1727983796276,0.002819,60890.0,60889.0,0.264133]
[1727983799752,0.0285626,60890.0,60889.0,0.264133]
[1727983800048,0.002819,60890.0,60889.0,0.264133]
[1727983802751,0.002819,60890.0,60889.0,0.343133]
[1727983802971,0.002819,60890.0,60889.0,0.60631971]
[1727983802972,0.000819,60890.0,60889.0,0.60631971]
[1727983803209,0.29599628,60903.0,60902.0,0.340098]
[1727983803454,0.24668821,60903.0,60902.0,0.340098]
[1727983804143,0.02573959,60907.0,60906.0,0.164187]
[1727983804806,0.02573959,60907.0,60906.0,0.187187]
[1727983805490,0.02673959,60907.0,60906.0,0.195187]
[1727983807098,0.02773959,60907.0,60906.0,0.203187]
[1727983809429,0.02855859,60907.0,60906.0,0.203187]
[1727983809885,0.02855859,60907.0,60906.0,0.180187]
[1727983814636,0.02855859,60907.0,60906.0,0.016]
[1727983814853,0.02855859,60907.0,60906.0,0.180187]
[1727983815537,0.002819,60907.0,60906.0,0.180187]
[1727983816233,0.002819,60907.0,60906.0,0.18157201]
[1727983816687,0.002819,60907.0,60906.0,0.180187]
[1727983817328,0.002819,60907.0,60906.0,0.18347034]
[1727983817549,0.002819,60907.0,60906.0,0.26187034]
[1727983817760,0.002819,60907.0,60906.0,0.35497034]
[1727983818004,0.002819,60907.0,60906.0,0.351687]
[1727983819771,0.002819,60907.0,60906.0,0.273287]
[1727983819987,0.002819,60907.0,60906.0,0.180187]
[1727983820244,0.02855605,60907.0,60906.0,0.180187]
[1727983820896,0.08310224,60907.0,60906.0,0.016]
[1727983821119,0.24728624,60907.0,60906.0,0.016]
[1727983822025,0.164201,60901.0,60894.0,0.328437]
[1727983822232,0.328395,60903.0,60894.0,0.328437]
[1727983822428,0.164204,60900.0,60894.0,0.328437]
[1727983822731,0.18994165,60901.0,60895.0,0.32843]
[1727983823107,0.02574165,60901.0,60897.0,0.328421]
[1727983823313,0.02574165,60901.0,60900.0,0.164203]
[1727983823983,0.24668821,60904.0,60902.0,0.164196]
[1727983824668,0.001,60901.0,60887.0,0.2793181]
[1727983824874,0.001,60901.0,60896.0,0.164212]
[1727983825090,0.164205,60900.0,60896.0,0.164213]
[1727983825511,0.328404,60901.0,60896.0,0.164213]
[1727983825727,0.164204,60900.0,60896.0,0.164213]
[1727983825952,0.16421,60898.0,60894.0,0.164219]
[1727983826164,0.164204,60900.0,60896.0,0.164213]
[1727983827290,0.02574241,60900.0,60898.0,0.164207]
[1727983827519,0.18994641,60900.0,60896.0,0.164212]
[1727983827733,0.18994641,60900.0,60897.0,0.16421]
[1727983828374,0.164211,60897.0,60896.0,0.001]
[1727983828602,0.164215,60896.0,60891.0,0.328454]
[1727983828815,0.575728,60898.0,60897.0,0.001]
[1727983829029,0.247309,60898.0,60897.0,0.001]
[1727983829243,0.247309,60898.0,60893.0,0.164221]
[1727983829447,0.247309,60898.0,60890.0,0.330096]
[1727983829448,0.02574241,60900.0,60897.0,0.16421]
[1727983829684,0.02574241,60900.0,60899.0,0.164206]
[1727983831633,0.000819,60907.0,60906.0,0.164187]
[1727983832113,0.000819,60907.0,60905.0,0.16419]
[1727983832330,0.000819,60907.0,60906.0,0.164187]
[1727983832782,0.000819,60907.0,60904.0,0.328383]
[1727983833007,0.000819,60907.0,60906.0,0.164187]
[1727983833223,0.004819,60907.0,60906.0,0.164187]
[1727983833690,0.004819,60907.0,60906.0,0.244087]
[1727983833919,0.006819,60907.0,60906.0,0.267087]
[1727983834576,0.000819,60907.0,60906.0,0.267087]
[1727983834783,0.02655627,60907.0,60906.0,0.272087]
[1727983835227,0.02655627,60907.0,60906.0,0.270087]
[1727983835644,0.02755627,60907.0,60906.0,0.269087]
[1727983835857,0.02855627,60907.0,60906.0,0.276087]
[1727983836303,0.002819,60907.0,60906.0,0.276087]
[1727983838304,0.002819,60907.0,60906.0,0.173187]
[1727983839567,0.02855677,60907.0,60906.0,0.173187]
[1727983841685,0.02855677,60907.0,60906.0,0.009]
[1727983842538,0.02855677,60907.0,60906.0,0.173187]
[1727983846069,0.02855677,60907.0,60906.0,0.272287]
[1727983846292,0.02855677,60907.0,60906.0,0.295287]
[1727983846517,0.002819,60907.0,60906.0,0.295287]
[1727983850532,0.002819,60907.0,60906.0,0.53567371]
[1727983851202,0.002819,60907.0,60906.0,0.53767371]
[1727983851726,0.002819,60907.0,60906.0,0.53567371]
[1727983852409,0.000819,60907.0,60906.0,0.52667371]
[1727983852647,0.001819,60907.0,60906.0,0.52867371]
[1727983852913,0.002819,60907.0,60906.0,0.53967371]
[1727983853155,0.002819,60907.0,60906.0,0.52667371]
[1727983853156,0.000819,60907.0,60906.0,0.52667371]
[1727983853645,0.002819,60907.0,60906.0,0.54267371]
[1727983853889,0.002819,60907.0,60906.0,0.54467371]
[1727983854132,0.002819,60907.0,60906.0,0.54267371]
[1727983857420,0.002819,60907.0,60906.0,0.64967371]
[1727983857906,0.000818,60913.0,60912.0,0.194171]
[1727983858155,0.24668821,60919.0,60918.0,0.5410731]
[1727983858396,0.24668821,60919.0,60918.0,0.70425981]
[1727983858642,0.09841546,60930.0,60926.0,0.418665]
[1727983858643,0.04920773,60929.0,60926.0,0.418665]
[1727983858874,0.04920773,60929.0,60928.0,0.3734461]
[1727983859397,0.07381159,60930.0,60929.0,0.187125]
[1727983859860,0.04919582,60931.0,60930.0,0.164122]
[1727983860336,0.04919582,60931.0,60930.0,0.187122]
[1727983860911,0.04919582,60931.0,60930.0,0.596366]
[1727983860912,0.07381159,60931.0,60930.0,0.596366]
[1727983861164,0.07381159,60933.0,60932.0,0.023]
[1727983861397,0.04919503,60935.0,60934.0,0.166111]
[1727983861650,0.04919503,60935.0,60934.0,0.32729771]
[1727983861901,0.04919503,60935.0,60934.0,0.35029771]
[1727983862155,0.04919503,60936.0,60934.0,0.18618671]
[1727983862433,0.04919503,60937.0,60936.0,0.187106]
[1727983862874,0.02572338,60938.0,60937.0,0.187103]
[1727983863342,0.07487907,60938.0,60937.0,0.187103]
[1727983863818,0.02572338,60938.0,60937.0,0.187103]
[1727983864551,0.02572338,60938.0,60937.0,0.194103]
[1727983865496,0.049153,60941.0,60938.0,0.328201]
[1727983865951,0.049153,60940.0,60939.0,0.164098]
[1727983866433,0.049153,60941.0,60940.0,0.164095]
[1727983868732,0.07487683,60941.0,60940.0,0.164095]
[1727983868943,0.07487683,60941.0,60940.0,0.165095]
[1727983869424,0.02572383,60941.0,60940.0,0.165095]
[1727983869854,0.02654183,60941.0,60940.0,0.164095]
[1727983870081,0.02654183,60941.0,60940.0,0.168095]
[1727983870524,0.02654183,60941.0,60940.0,0.166095]
[1727983872570,0.02654183,60941.0,60940.0,0.3524131]
[1727983873056,0.000818,60941.0,60940.0,0.3524131]
[1727983873990,0.04991512,60941.0,60940.0,0.3524131]
[1727983874406,0.000818,60941.0,60940.0,0.3524131]
[1727983875469,0.000818,60941.0,60940.0,0.3754131]
[1727983875635,0.000818,60941.0,60940.0,0.4572131]
[1727983877111,0.000818,60941.0,60940.0,0.62039981]
[1727983877329,0.000818,60941.0,60940.0,0.71669981]
[1727983877812,0.000818,60941.0,60940.0,0.72169981]
[1727983878970,0.000818,60941.0,60940.0,0.72669981]
[1727983885271,0.000818,60941.0,60940.0,0.72869981]
[1727983887577,0.000818,60941.0,60940.0,0.72669981]
[1727983888040,0.000818,60941.0,60940.0,0.64489981]
[1727983891546,0.000818,60941.0,60940.0,0.63989981]
[1727983891795,0.000818,60941.0,60940.0,0.64889981]
[1727983892029,0.000818,60941.0,60940.0,0.66289981]
[1727983896290,0.000818,60941.0,60940.0,0.73889981]
[1727983900446,0.000818,60941.0,60940.0,0.66289981]
[1727983900724,0.000818,60941.0,60940.0,0.192095]
[1727983901901,0.000818,60941.0,60940.0,0.178095]
[1727983902147,0.000818,60941.0,60940.0,0.170095]
[1727983902384,0.000818,60941.0,60940.0,0.164095]
[1727983902636,0.000818,60941.0,60940.0,0.179095]
[1727983903075,0.000818,60941.0,60940.0,0.170095]
[1727983903337,0.000818,60941.0,60940.0,0.177095]
[1727983907841,0.000818,60941.0,60940.0,0.18037653]
[1727983908062,0.000818,60941.0,60940.0,0.177095]
[1727983913662,0.000818,60941.0,60940.0,0.53908171]
[1727983915072,0.000818,60941.0,60940.0,0.53308171]
[1727983915317,0.000818,60941.0,60940.0,0.53808171]
[1727983915756,0.000818,60941.0,60940.0,0.54508171]
[1727983916205,0.000818,60941.0,60940.0,0.53808171]
[1727983916502,0.000818,60941.0,60940.0,0.55008171]
[1727983916726,0.000819,60950.0,60949.0,0.3733891]
[1727983916978,0.000819,60950.0,60949.0,0.61807581]
[1727983918584,0.000819,60950.0,60949.0,0.62907581]
[1727983918815,0.000819,60950.0,60949.0,0.62707581]
[1727983925052,0.000819,60950.0,60949.0,0.54557581]
[1727983932835,0.000819,60950.0,60949.0,0.3823891]
[1727983936478,0.000819,60950.0,60949.0,0.63887581]
[1727983936761,0.32908821,60962.0,60956.0,0.328103]
[1727983936762,0.24668821,60962.0,60956.0,0.328103]
[1727983936985,0.24668821,60962.0,60960.0,0.4702591]
[1727983937229,0.27240365,60962.0,60960.0,0.4702591]
[1727983937483,0.27240365,60962.0,60960.0,0.5518591]
[1727983937701,0.02571544,60962.0,60960.0,0.5518591]
[1727983938146,0.02571544,60962.0,60960.0,0.71504581]
[1727983938619,0.02571544,60962.0,60960.0,0.72504581]
[1727983938620,0.00048476,60961.0,60960.0,0.72504581]
[1727983939804,0.00048476,60961.0,60960.0,0.71504581]
[1727983940041,0.00048476,60961.0,60960.0,0.69204581]
[1727983940270,0.00048476,60961.0,60960.0,0.72804581]
[1727983940494,0.00048476,60961.0,60960.0,0.74104581]
[1727983941181,0.00048476,60961.0,60960.0,0.74304581]
[1727983941658,0.24668821,60969.0,60968.0,0.16402]
[1727983941943,0.04912338,60977.0,60968.0,0.16402]
[1727983941944,0.04912338,60980.0,60978.0,0.163993]
[1727983942177,0.24668821,60986.0,60985.0,0.0995]
[1727983942427,0.24668821,60986.0,60985.0,0.73597881]
[1727983942655,0.07368507,60991.0,60985.0,0.73597881]
[1727983942656,0.04912338,60991.0,60990.0,0.163961]
[1727983942913,0.04912338,60991.0,60990.0,0.53846581]
[1727983943176,0.04994138,60992.0,60991.0,0.186958]
[1727983943501,0.12280845,60997.0,60995.0,0.163947]
[1727983943502,0.24668821,60996.0,60995.0,0.163947]
[1727983943687,0.09824676,60998.0,60995.0,0.163947]
[1727983943688,0.07368507,60998.0,60997.0,0.163942]
[1727983943961,0.10126476,60999.0,60998.0,0.186939]
[1727983944386,0.10115904,60999.0,60998.0,0.186939]
[1727983944623,0.07662215,60999.0,60998.0,0.186939]
[1727983944847,0.003018,60999.0,60996.0,0.5142071]
[1727983945110,0.003018,60999.0,60998.0,0.163939]
[1727983945321,0.10113349,60999.0,60998.0,0.163939]
[1727983945579,0.003018,60999.0,60996.0,0.1863181]
[1727983945791,0.09811625,60998.0,60996.0,0.163944]
[1727983946073,0.09811625,60997.0,60994.0,0.3279]
[1727983946284,0.07358816,60996.0,60993.0,0.023]
[1727983946514,0.07358816,60996.0,60995.0,0.163947]
[1727983946967,0.09811625,60997.0,60993.0,0.327903]
[1727983947197,0.07357473,60995.0,60992.0,0.1863181]
[1727983947419,0.07357473,60995.0,60993.0,0.163952]
[1727983947632,0.07357473,60995.0,60992.0,0.1863181]
[1727983948096,0.07357473,60995.0,60993.0,0.163953]
[1727983948349,0.07357473,60995.0,60992.0,0.1863181]
[1727983948350,0.07357473,60996.0,60992.0,0.1863181]
[1727983948581,0.07357473,60996.0,60993.0,0.163952]
[1727983948798,0.07357473,60996.0,60994.0,0.163949]
[1727983949025,0.28976345,60999.0,60992.0,0.1863181]
[1727983949026,0.003018,60999.0,60992.0,0.1863181]
[1727983949221,0.003018,60999.0,60998.0,0.163939]
[1727983949656,0.003018,60999.0,60996.0,0.3502611]
[1727983949901,0.003018,60999.0,60997.0,0.163942]
[1727983950336,0.003018,60999.0,60996.0,0.1863181]
[1727983950337,0.003018,60999.0,60998.0,0.163939]
[1727983951262,0.003018,60999.0,60996.0,0.3502611]
[1727983951479,0.003018,60999.0,60997.0,0.163942]
[1727983951697,0.003018,60999.0,60998.0,0.163939]
[1727983953046,0.079218,60999.0,60994.0,0.3279]
[1727983953255,0.079218,60999.0,60980.0,0.24668821]
[1727983953256,0.0762,60984.0,60980.0,0.24668821]
[1727983953469,0.163986,60981.0,60980.0,0.24668821]
[1727983953680,0.404156,60984.0,60973.0,0.24668821]
[1727983953888,0.163983,60982.0,60976.0,0.163998]
[1727983954128,0.404156,60984.0,60975.0,0.328]
[1727983954129,0.163981,60983.0,60975.0,0.328]
[1727983954355,0.404155,60984.0,60972.0,0.164009]
[1727983954356,0.327973,60981.0,60972.0,0.164009]
[1727983954577,0.163991,60979.0,60973.0,0.164005]
[1727983954793,0.163996,60977.0,60970.0,0.328026]
[1727983955054,0.163996,60977.0,60971.0,0.164012]
[1727983955284,0.163996,60977.0,60971.0,0.164011]
[1727983955493,0.327974,60981.0,60974.0,0.164003]
[1727983955706,0.163991,60979.0,60974.0,0.164003]
[1727983956392,0.18969747,60980.0,60975.0,0.164]
[1727983956612,0.164,60976.0,60966.0,0.1863181]
[1727983956810,0.164005,60974.0,60969.0,0.164016]
[1727983957022,0.35368947,60980.0,60971.0,0.32802]
[1727983957231,0.41068221,60978.0,60972.0,0.164008]
[1727983957452,0.24668821,60978.0,60971.0,0.32802]
[1727983957685,0.24668821,60978.0,60974.0,0.164003]
[1727983957899,0.24668821,60978.0,60972.0,0.328017]
[1727983958126,0.24668821,60978.0,60974.0,0.164003]
[1727983958558,0.32798,60980.0,60972.0,0.328017]
[1727983958783,0.163991,60979.0,60975.0,0.164]
[1727983959051,0.327979,60980.0,60971.0,0.328021]
[1727983959267,0.327983,60979.0,60966.0,0.1863181]
[1727983959473,0.164004,60974.0,60970.0,0.164013]
[1727983959682,0.164002,60975.0,60966.0,0.1863181]
[1727983959902,0.002,60988.0,60966.0,0.1863181]
[1727983959903,0.164005,60974.0,60971.0,0.164011]
[1727983960125,0.164005,60974.0,60951.0,0.001636]
[1727983960126,0.43300631,60972.0,60951.0,0.001636]
[1727983960366,0.328083,60961.0,60956.0,0.24668821]
[1727983960602,0.1,60965.0,60951.0,0.001636]
[1727983960603,0.328063,60964.0,60951.0,0.001636]
[1727983960821,0.164049,60958.0,60951.0,0.001636]
[1727983961047,0.164051,60957.0,60951.0,0.001636]
[1727983961283,0.0823,60955.0,60951.0,0.001636]
[1727983961762,0.16406,60953.0,60951.0,0.002636]
[1727983961987,0.164058,60954.0,60951.0,0.002636]
[1727983962231,0.0823,60955.0,60952.0,0.01076178]
[1727983962491,0.34668821,60963.0,60952.0,0.01076178]
[1727983962492,0.410649,60967.0,60953.0,0.32812]
[1727983962737,0.410649,60967.0,60961.0,0.164039]
[1727983962738,0.24668821,60962.0,60961.0,0.164039]
[1727983963215,0.0826,60967.0,60963.0,0.164033]
[1727983963444,0.0826,60967.0,60961.0,0.3388222]
[1727983963678,0.164005,60974.0,60968.0,0.164018]
[1727983963903,0.24668821,60969.0,60961.0,0.2806181]
[1727983964132,0.403497,60976.0,60969.0,0.01073349]
[1727983964397,0.24668821,60971.0,60964.0,0.16403]
[1727983964616,0.328012,60974.0,60970.0,0.01073187]
[1727983964832,0.02571428,60970.0,60963.0,0.328067]
[1727983965058,0.02571428,60970.0,60965.0,0.164026]
[1727983965277,0.02571428,60970.0,60969.0,0.001]
[1727983965779,0.02571428,60970.0,60966.0,0.164025]
[1727983966000,0.164007,60973.0,60966.0,0.164025]
[1727983966665,0.164009,60972.0,60966.0,0.164025]
[1727983967187,0.164014,60971.0,60965.0,0.164027]
[1727983967429,0.164015,60970.0,60966.0,0.001]
[1727983967653,0.164015,60970.0,60965.0,0.164027]
[1727983967894,0.32802,60972.0,60962.0,0.328069]
[1727983968164,0.492032,60972.0,60966.0,0.164025]
[1727983968645,0.4035,60976.0,60965.0,0.328054]
[1727983968881,0.16401,60972.0,60967.0,0.164022]
[1727983969130,0.1897183,60974.0,60963.0,0.001636]
[1727983969344,0.164003,60975.0,60969.0,0.164016]
[1727983970046,0.164008,60973.0,60968.0,0.164018]
[1727983970281,0.164008,60973.0,60965.0,0.164026]
[1727983970282,0.164014,60971.0,60965.0,0.164026]
[1727983970502,0.164011,60972.0,60967.0,0.164021]
[1727983970955,0.164011,60972.0,60968.0,0.164019]
[1727983972761,0.18972444,60972.0,60968.0,0.164019]
[1727983973488,0.18972444,60972.0,60967.0,0.328046]
[1727983973489,0.164014,60971.0,60967.0,0.164022]
[1727983973770,0.0755,60976.0,60964.0,0.328057]
[1727983973993,0.0755,60976.0,60969.0,0.164017]
[1727983974244,0.164002,60975.0,60969.0,0.164017]
[1727983974483,0.0755,60976.0,60975.0,0.164001]
[1727983974959,0.0755,60976.0,60973.0,0.328012]
[1727983975418,0.0755,60976.0,60975.0,0.164001]
[1727983976644,0.1012116,60976.0,60975.0,0.164001]
[1727983977874,0.0755,60976.0,60975.0,0.164001]
[1727983980637,0.000818,60976.0,60966.0,0.820115]
[1727983980864,0.000818,60976.0,60975.0,0.164001]
[1727983983481,0.000818,60976.0,60975.0,0.168001]
[1727983984396,0.000818,60976.0,60975.0,0.173001]
[1727983984879,0.000818,60976.0,60975.0,0.168001]
[1727983985087,0.000818,60976.0,60975.0,0.175001]
[1727983985558,0.000818,60976.0,60975.0,0.171001]
[1727983985785,0.000818,60976.0,60975.0,0.36225977]
[1727983986495,0.000818,60976.0,60975.0,0.36825977]
[1727983987632,0.000818,60976.0,60975.0,0.47385977]
[1727983987864,0.24668821,60987.0,60976.0,0.002]
[1727983988091,0.24668821,60987.0,60986.0,0.47233077]
[1727983988320,0.24668821,60994.0,60987.0,0.1056]
[1727983988538,0.24668821,60994.0,60993.0,0.37321177]
[1727983989039,0.003018,60999.0,60998.0,0.163939]
[1727983991285,0.02871821,60999.0,60998.0,0.163939]
[1727983991525,0.02871821,60999.0,60994.0,0.327899]
[1727983991773,0.02871821,60999.0,60994.0,0.327898]
[1727983992006,0.19265521,60999.0,60995.0,0.163946]
[1727983992241,0.166955,60999.0,60996.0,0.163944]
[1727983992716,0.166955,60999.0,60997.0,0.163941]
[1727983992717,0.003018,60999.0,60997.0,0.163941]
[1727983992917,0.003018,60999.0,60998.0,0.163939]
[1727983994304,0.003018,60999.0,60998.0,0.258239]
[1727983995309,0.003018,60999.0,60998.0,0.36501882]
[1727983995545,0.003018,60999.0,60998.0,0.52502571]
[1727983995783,0.000818,61011.0,61010.0,0.57286577]
[1727983996025,0.24668821,61017.0,61016.0,0.163891]
[1727983996268,0.0002,61019.0,61018.0,0.163886]
[1727983996526,0.0002,61019.0,61018.0,0.186886]
[1727983997454,0.0002,61019.0,61018.0,0.35007271]
[1727983998622,0.0002,61019.0,61018.0,0.177886]
[1727983998834,0.0002,61019.0,61018.0,0.172886]
[1727983999076,0.0002,61019.0,61018.0,0.184886]
[1727983999320,0.0002,61019.0,61018.0,0.175886]
[1727983999556,0.0002,61019.0,61018.0,0.163886]
[1727983999786,0.0002,61019.0,61015.0,0.123]
[1727984000035,0.0002,61019.0,61018.0,0.35014477]
[1727984000281,0.0002,61019.0,61016.0,0.163891]
[1727984000511,0.0002,61019.0,61014.0,0.51405177]
[1727984000512,0.0002,61019.0,61014.0,0.18625877]
[1727984000989,0.0002,61019.0,61017.0,0.163887]
[1727984001219,0.0002,61019.0,61015.0,0.163891]
[1727984001459,0.0002,61019.0,61018.0,0.008]
[1727984001669,0.0012,61019.0,61018.0,0.008]
[1727984002136,0.0032,61019.0,61016.0,0.163888]
[1727984002374,0.0042,61019.0,61016.0,0.163888]
[1727984002609,0.0062,61019.0,61016.0,0.163888]
[1727984002955,0.0032,61019.0,61016.0,0.163888]
[1727984003056,0.0032,61019.0,61014.0,0.51404777]
[1727984003057,0.0042,61019.0,61014.0,0.18625877]
[1727984003285,0.0022,61019.0,61014.0,0.35015477]
[1727984003774,0.0042,61019.0,61014.0,0.35015477]
[1727984004002,0.0042,61019.0,61010.0,0.51407177]
[1727984004522,0.331969,61019.0,61010.0,0.51407177]
[1727984004764,0.331969,61019.0,61006.0,0.18625877]
[1727984004765,0.24668821,61016.0,61006.0,0.18625877]
[1727984004997,0.1639,61013.0,61007.0,0.24668821]
[1727984005235,0.327788,61015.0,61004.0,0.163922]
[1727984005466,0.327788,61015.0,61003.0,0.51410677]
[1727984005717,0.1639,61013.0,61006.0,0.163917]
[1727984005949,0.32779,61015.0,61006.0,0.163917]
[1727984006204,0.1639,61013.0,61006.0,0.163917]
[1727984006447,0.24668821,61016.0,61007.0,0.004]
[1727984006700,0.02657079,61019.0,61008.0,0.24668821]
[1727984006948,0.02569569,61012.0,61011.0,0.163904]
[1727984007209,0.001018,61019.0,61009.0,0.327819]
[1727984007210,0.001018,61019.0,61014.0,0.18625877]
[1727984007464,0.001018,61019.0,61018.0,0.18625877]
[1727984007712,0.001018,61019.0,61018.0,0.35014477]
[1727984009392,0.004018,61019.0,61018.0,0.35014477]
[1727984009884,0.004018,61019.0,61018.0,0.163886]
[1727984010141,0.002018,61019.0,61018.0,0.35014477]
[1727984011523,0.004018,61019.0,61018.0,0.35014477]
[1727984012017,0.004018,61019.0,61018.0,0.35714477]
[1727984012246,0.003018,61019.0,61018.0,0.35714477]
[1727984012475,0.004018,61019.0,61018.0,0.35714477]
[1727984012942,0.001018,61019.0,61018.0,0.35014477]
[1727984013187,0.001018,61019.0,61018.0,0.35914477]
[1727984013662,0.001018,61019.0,61018.0,0.38214477]
[1727984014677,0.001018,61019.0,61018.0,0.54533148]
[1727984019223,0.001018,61019.0,61018.0,0.172886]
[1727984019963,0.001018,61019.0,61018.0,0.35914477]
[1727984022046,0.001018,61019.0,61018.0,0.009]
[1727984022293,0.001018,61019.0,61018.0,0.163886]
[1727984022552,0.04407624,61019.0,61018.0,0.164886]
[1727984022773,0.04407624,61019.0,61018.0,0.001]
[1727984022996,0.327787,61016.0,61009.0,0.327818]
[1727984023217,0.327787,61016.0,61006.0,0.18625877]
[1727984023218,0.327795,61014.0,61007.0,0.24668821]
[1727984023462,0.01736812,61013.0,61007.0,0.24668821]
[1727984023694,0.01736812,61012.0,61010.0,0.163906]
[1727984023931,0.01736812,61012.0,61008.0,0.327825]
[1727984023932,0.01736812,61011.0,61008.0,0.16391]
[1727984024148,0.01736812,61010.0,61006.0,0.18625877]
[1727984024384,0.01736812,61009.0,61002.0,0.18625877]
[1727984024616,0.01736812,61008.0,61004.0,0.327847]
[1727984024859,0.327806,61012.0,61004.0,0.327847]
[1727984024860,0.01736812,61007.0,61004.0,0.327847]
[1727984025085,0.163902,61012.0,61007.0,0.163914]
[1727984025335,0.24668821,61011.0,61009.0,0.002]
[1727984025576,0.163906,61011.0,61009.0,0.002]
[1727984025801,0.327806,61012.0,61002.0,0.51411277]
[1727984025802,0.01728884,61010.0,61005.0,0.327839]
[1727984026040,0.01728884,61009.0,61008.0,0.163912]
[1727984026245,0.01728884,61009.0,61005.0,0.327839]
[1727984026470,0.01728884,61008.0,61005.0,0.327841]
[1727984026691,0.01728557,61007.0,61006.0,0.163918]
[1727984027591,0.164902,61019.0,61009.0,0.327819]
[1727984027592,0.001018,61019.0,61009.0,0.327819]
[1727984027819,0.1811941,61017.0,61010.0,0.327811]
[1727984028040,0.0173041,61016.0,61014.0,0.163896]
[1727984028269,0.0173041,61016.0,61012.0,0.51405777]
[1727984028270,0.001018,61019.0,61013.0,0.327797]
[1727984028496,0.001018,61019.0,61018.0,0.163886]
[1727984028748,0.01838487,61019.0,61018.0,0.163886]
[1727984030145,0.02138487,61019.0,61013.0,0.327797]
[1727984030382,0.01736687,61018.0,61017.0,0.163887]
[1727984030613,0.01736687,61018.0,61013.0,0.327797]
[1727984030840,0.01736687,61017.0,61016.0,0.163891]
[1727984031578,0.01746547,61017.0,61016.0,0.001634]
[1727984031811,0.01746547,61017.0,61016.0,0.35178377]
[1727984032249,0.01846547,61017.0,61016.0,0.35178377]
[1727984032872,0.01746547,61017.0,61016.0,0.35178377]
[1727984033533,0.01746547,61017.0,61016.0,0.35478377]
[1727984034055,0.01746547,61017.0,61016.0,0.170525]
[1727984034765,0.02670793,61019.0,61017.0,0.163887]
[1727984035245,0.02670793,61019.0,61018.0,0.163886]
[1727984035496,0.04422635,61019.0,61018.0,0.163886]
[1727984035958,0.01853642,61019.0,61018.0,0.163886]
[1727984036869,0.01853642,61019.0,61018.0,0.164886]
[1727984037786,0.01853642,61019.0,61018.0,0.35114477]
[1727984038018,0.001018,61019.0,61018.0,0.35114477]
[1727984038241,0.01854584,61019.0,61018.0,0.35114477]
[1727984038969,0.001018,61019.0,61018.0,0.45044477]
[1727984039465,0.001018,61019.0,61018.0,0.45567098]
[1727984039692,0.001018,61019.0,61018.0,0.44944477]
[1727984039911,0.002018,61019.0,61018.0,0.38114477]
[1727984040133,0.002018,61019.0,61018.0,0.36514477]
[1727984040371,0.002018,61019.0,61018.0,0.35814477]
[1727984040593,0.01913328,61019.0,61018.0,0.35814477]
[1727984040823,0.002018,61019.0,61018.0,0.37114477]
[1727984041059,0.01913243,61019.0,61018.0,0.37114477]
[1727984041378,0.01813243,61019.0,61018.0,0.37214477]
[1727984041607,0.01913243,61019.0,61018.0,0.36314477]
[1727984041975,0.01813243,61019.0,61018.0,0.35714477]
[1727984042177,0.01813243,61019.0,61018.0,0.36514477]
[1727984042394,0.01813243,61019.0,61018.0,0.178886]
[1727984042845,0.04382199,61019.0,61018.0,0.178886]
[1727984043480,0.20769332,61019.0,61018.0,0.015]
[1727984043943,0.28142626,61019.0,61018.0,0.015]
[1727984044159,0.20769332,61019.0,61018.0,0.015]
[1727984044369,0.20769332,61019.0,61018.0,0.007]
[1727984044597,0.163888,61017.0,61016.0,0.001634]
[1727984044825,0.27930135,61017.0,61016.0,0.001634]
[1727984045736,0.28230135,61017.0,61016.0,0.001634]
[1727984045956,0.23315067,61017.0,61016.0,0.001634]
[1727984046179,0.09384267,61017.0,61016.0,0.001634]
[1727984046419,0.09384267,61017.0,61016.0,0.165525]
[1727984046731,0.06917779,61017.0,61016.0,0.165525]
[1727984046963,0.0200184,61017.0,61016.0,0.165525]
[1727984047199,0.0220184,61017.0,61016.0,0.165525]
[1727984047438,0.0200184,61017.0,61016.0,0.165525]
[1727984047653,0.0200184,61017.0,61016.0,0.168525]